bitfinex-derivatives/quotes_BTCF0:USTF0_20250108
["timestamp","ask_amount","ask_price","bid_price","bid_amount"]
[1736348868553,0.01011309,95922.0,95901.0,0.41295]
[1736348868554,0.052147,95906.0,95901.0,0.41295]
[1736348869341,0.009,95902.0,95901.0,0.41295]
[1736348870052,0.009,95902.0,95901.0,0.46055538]
[1736348870445,0.0101977,95927.0,95901.0,0.40840538]
[1736348870646,0.052144,95911.0,95902.0,0.04760538]
[1736348870954,0.052144,95911.0,95910.0,0.3608]
[1736348871149,0.052144,95911.0,95910.0,0.40840538]
[1736348871542,0.001,95927.0,95913.0,0.052143]
[1736348871741,0.001,95927.0,95914.0,0.04760538]
[1736348872045,0.001,95927.0,95910.0,0.3608]
[1736348872046,0.00068,95940.0,95929.0,0.052134]
[1736348872245,0.18463686,95949.0,95939.0,0.3608]
[1736348872557,0.23676086,95949.0,95948.0,0.3608]
[1736348872854,0.1323,95961.0,95948.0,0.3608]
[1736348873052,0.3608,95954.0,95938.0,0.3608]
[1736348873356,0.05214,95919.0,95918.0,0.3608]
[1736348875358,0.1238,95930.0,95918.0,0.3608]
[1736348875855,0.05214,95920.0,95918.0,0.3658]
[1736348877149,0.1238,95930.0,95918.0,0.3658]
[1736348877352,0.052139,95921.0,95918.0,0.3748]
[1736348878055,0.001,95920.0,95919.0,0.0475791]
[1736348878367,0.05214,95919.0,95918.0,0.014]
[1736348879056,0.001,95921.0,95919.0,0.05214]
[1736348879851,0.1323,95949.0,95920.0,0.3608]
[1736348880056,0.052131,95936.0,95935.0,0.3608]
[1736348880256,0.1323,95949.0,95932.0,0.3608]
[1736348880562,0.052137,95924.0,95920.0,0.3608]
[1736348880755,0.3608,95942.0,95920.0,0.3608]
[1736348880956,0.052133,95933.0,95920.0,0.3698]
[1736348881155,0.052133,95933.0,95930.0,0.3608]
[1736348881661,0.14352625,95949.0,95930.0,0.3608]
[1736348881662,0.052133,95932.0,95930.0,0.3608]
[1736348882359,0.052133,95931.0,95930.0,0.3608]
[1736348882559,0.052133,95931.0,95930.0,0.3688]
[1736348883150,0.001,95933.0,95930.0,0.3688]
[1736348883355,0.052133,95931.0,95930.0,0.3688]
[1736348884052,0.052133,95931.0,95930.0,0.3718]
[1736348884354,0.001,95933.0,95932.0,0.052133]
[1736348884661,0.052109,95977.0,95930.0,0.3718]
[1736348884662,0.001,95932.0,95931.0,0.052133]
[1736348884854,0.17401134,95963.0,95953.0,0.052121]
[1736348885159,0.17401134,95963.0,95930.0,0.61614061]
[1736348885160,0.052118,95959.0,95957.0,0.412919]
[1736348885361,0.052118,95959.0,95957.0,0.3608]
[1736348885759,0.3608,95958.0,95946.0,0.3608]
[1736348886060,0.052125,95947.0,95946.0,0.3608]
[1736348886257,0.052121,95953.0,95946.0,0.3608]
[1736348886463,0.052121,95953.0,95952.0,0.052122]
[1736348886755,0.052105,95984.0,95948.0,0.3608]
[1736348886946,0.052115,95965.0,95964.0,0.3608]
[1736348887456,0.052124,95949.0,95948.0,0.3608]
[1736348887660,0.052124,95949.0,95933.0,0.00156356]
[1736348887661,0.3608,95949.0,95933.0,0.00156356]
[1736348887863,0.052133,95932.0,95931.0,0.3608]
[1736348888250,0.6608,95932.0,95911.0,0.60587933]
[1736348888452,0.052144,95912.0,95911.0,0.60587933]
[1736348888650,7.993e-05,95912.0,95911.0,0.60587933]
[1736348889049,7.993e-05,95912.0,95911.0,0.65802333]
[1736348889259,0.3608,95958.0,95911.0,0.3608]
[1736348889556,0.052121,95954.0,95933.0,0.052132]
[1736348889765,0.052121,95954.0,95932.0,0.3608]
[1736348890358,0.052126,95945.0,95941.0,0.3608]
[1736348890755,0.180327,95942.0,95941.0,0.3608]
[1736348891360,0.052133,95933.0,95930.0,0.3608]
[1736348891566,0.052133,95931.0,95930.0,0.3608]
[1736348892453,0.24334061,95940.0,95930.0,0.007]
[1736348892666,0.052133,95931.0,95930.0,0.007]
[1736348893068,0.052138,95922.0,95916.0,0.3608]
[1736348893367,0.05214,95919.0,95916.0,0.3608]
[1736348893560,0.3608,95933.0,95916.0,0.3608]
[1736348893760,0.052141,95917.0,95916.0,0.3608]
[1736348893964,0.3608,95924.0,95897.0,0.36236415]
[1736348894156,0.052151,95898.0,95897.0,0.36236415]
[1736348894358,0.05214,95919.0,95897.0,0.36236415]
[1736348894552,0.05215,95900.0,95897.0,0.36236415]
[1736348894963,0.1373,95912.0,95892.0,0.3608]
[1736348894964,0.052154,95893.0,95892.0,0.3608]
[1736348895456,0.3608,95903.0,95892.0,0.3608]
[1736348895657,0.3608,95924.0,95892.0,0.3608]
[1736348895857,0.052152,95898.0,95892.0,0.412954]
[1736348896058,0.052152,95898.0,95897.0,0.017]
[1736348896659,0.14738754,95912.0,95897.0,0.3688]
[1736348896866,0.01008754,95912.0,95905.0,0.052147]
[1736348897081,0.4891,95918.0,95902.0,0.052149]
[1736348897082,0.052146,95907.0,95902.0,0.052149]
[1736348897274,0.052146,95907.0,95906.0,0.3608]
[1736348897471,0.052144,95912.0,95906.0,0.3608]
[1736348897784,0.3608,95917.0,95897.0,0.412952]
[1736348897976,0.3608,95917.0,95897.0,0.3608]
[1736348898178,0.052151,95898.0,95897.0,0.3608]
[1736348898677,0.052147,95907.0,95903.0,0.052148]
[1736348898874,0.19790053,95916.0,95897.0,0.017]
[1736348899067,0.052148,95904.0,95897.0,0.017]
[1736348899277,0.05215,95900.0,95897.0,0.017]
[1736348899472,0.052151,95899.0,95897.0,0.017]
[1736348899678,0.3608,95908.0,95897.0,0.017]
[1736348899884,0.052151,95898.0,95897.0,0.017]
[1736348900783,0.052151,95898.0,95873.0,7.63e-05]
[1736348900985,0.052164,95874.0,95873.0,7.63e-05]
[1736348901877,0.044164,95874.0,95873.0,7.63e-05]
[1736348902070,0.044164,95874.0,95873.0,0.0090763]
[1736348902878,0.044164,95874.0,95873.0,0.0180763]
[1736348903689,0.3608,95874.0,95857.0,0.00156479]
[1736348903985,0.3608,95861.0,95847.0,0.3608]
[1736348904184,0.052178,95849.0,95847.0,0.3608]
[1736348904485,0.3608,95861.0,95839.0,0.3608]
[1736348904486,0.052183,95840.0,95839.0,0.3608]
[1736348904680,7.63e-05,95840.0,95839.0,0.01031971]
[1736348904879,7.63e-05,95840.0,95827.0,0.3608]
[1736348905078,7.63e-05,95840.0,95811.0,0.24507933]
[1736348905079,7.63e-05,95840.0,95817.0,0.3608]
[1736348905284,0.3548763,95844.0,95826.0,0.3608]
[1736348905585,0.052182,95841.0,95835.0,0.3608]
[1736348905881,0.052176,95854.0,95842.0,0.052181]
[1736348906086,0.3608,95855.0,95846.0,0.3608]
[1736348906087,0.052177,95850.0,95846.0,0.3608]
[1736348906284,0.3608,95855.0,95839.0,0.011]
[1736348906587,0.3608,95855.0,95839.0,0.005]
[1736348906588,0.052183,95840.0,95839.0,0.005]
[1736348906886,0.04719,95827.0,95821.0,0.00156538]
[1736348907092,0.3608,95822.0,95801.0,0.3608]
[1736348907386,0.052201,95807.0,95801.0,0.3608]
[1736348907579,0.052195,95819.0,95807.0,0.052201]
[1736348907885,0.052196,95817.0,95812.0,0.3608]
[1736348908277,0.052196,95816.0,95812.0,0.3608]
[1736348908473,0.052196,95816.0,95810.0,0.3608]
[1736348908682,0.052196,95817.0,95810.0,0.3608]
[1736348908890,0.001,95819.0,95810.0,0.3608]
[1736348909277,0.052198,95812.0,95810.0,0.3608]
[1736348910994,0.052198,95812.0,95810.0,0.33919844]
[1736348911290,0.052201,95806.0,95801.0,0.3608]
[1736348912290,0.01141116,95812.0,95801.0,0.3608]
[1736348912681,0.01041116,95812.0,95801.0,0.3608]
[1736348912882,0.002,95806.0,95801.0,0.3608]
[1736348913083,0.002,95806.0,95802.0,0.052203]
[1736348913293,0.002,95806.0,95805.0,0.36091108]
[1736348913483,0.01011116,95824.0,95805.0,0.36091108]
[1736348913680,0.052195,95819.0,95817.0,0.3608]
[1736348913878,0.3608,95830.0,95817.0,0.3608]
[1736348914378,0.3608,95830.0,95825.0,0.3608]
[1736348914379,0.01056944,95830.0,95825.0,0.3608]
[1736348914683,0.3608,95843.0,95825.0,0.3608]
[1736348914886,0.3608,95835.0,95825.0,0.3608]
[1736348915182,0.3608,95835.0,95807.0,0.3608]
[1736348915183,0.3608,95826.0,95807.0,0.3608]
[1736348915386,0.3608,95826.0,95816.0,0.3608]
[1736348915785,0.001,95830.0,95825.0,0.3608]
[1736348916488,0.001,95826.0,95825.0,0.3608]
[1736348916678,0.001,95826.0,95806.0,0.2658]
[1736348916884,0.001,95826.0,95804.0,0.3608]
[1736348916885,0.052201,95807.0,95804.0,0.3608]
[1736348917385,0.001,95826.0,95804.0,0.3608]
[1736348917685,0.001,95826.0,95813.0,0.3608]
[1736348917878,0.052194,95821.0,95814.0,0.052197]
[1736348918077,0.052194,95819.0,95814.0,0.052197]
[1736348918488,0.052194,95819.0,95817.0,0.052195]
[1736348918879,0.052194,95819.0,95813.0,0.3608]
[1736348919188,0.052195,95818.0,95814.0,0.055197]
[1736348919381,0.052195,95818.0,95814.0,0.003]
[1736348919581,0.001,95819.0,95818.0,0.052195]
[1736348919985,0.3712656,95836.0,95817.0,0.002]
[1736348920182,0.05219,95827.0,95825.0,0.412991]
[1736348920685,0.052187,95833.0,95831.0,0.052188]
[1736348920882,0.05218,95845.0,95826.0,0.05219]
[1736348921077,0.052187,95834.0,95829.0,0.052188]
[1736348921277,0.052187,95834.0,95810.0,0.24334061]
[1736348921278,0.052195,95817.0,95816.0,0.052196]
[1736348921477,0.001,95819.0,95817.0,0.052195]
[1736348921880,0.052191,95826.0,95815.0,0.3608]
[1736348922081,0.052184,95839.0,95837.0,0.052184]
[1736348922282,0.001,95845.0,95839.0,0.052183]
[1736348922592,0.052186,95834.0,95825.0,0.3608]
[1736348922794,0.052187,95832.0,95831.0,0.001]
[1736348923494,0.052187,95832.0,95829.0,0.052189]
[1736348923683,0.052187,95832.0,95825.0,0.3608]
[1736348923883,0.05218,95845.0,95834.0,0.052186]
[1736348924093,0.052181,95844.0,95832.0,0.052187]
[1736348924292,0.052181,95844.0,95834.0,0.052186]
[1736348924484,0.001,95839.0,95837.0,0.009]
[1736348924685,0.001,95839.0,95837.0,0.061184]
[1736348924893,0.01041682,95846.0,95838.0,0.412984]
[1736348925083,0.18610255,95889.0,95865.0,0.052169]
[1736348925397,0.18610255,95889.0,95887.0,0.052157]
[1736348925593,0.54690255,95889.0,95878.0,0.052162]
[1736348925781,0.18610255,95889.0,95887.0,0.052157]
[1736348926189,0.3608,95900.0,95886.0,0.3608]
[1736348926493,0.3608,95900.0,95894.0,0.052153]
[1736348926681,0.37137749,95900.0,95894.0,0.052153]
[1736348927386,0.37137749,95900.0,95887.0,0.002]
[1736348927387,0.37137749,95900.0,95895.0,0.052153]
[1736348927587,0.37137749,95900.0,95889.0,0.052156]
[1736348927780,0.3608,95890.0,95865.0,0.3698]
[1736348927986,0.3608,95890.0,95879.0,0.3608]
[1736348928198,0.3608,95890.0,95883.0,0.052159]
[1736348928489,0.3608,95890.0,95887.0,0.009]
[1736348928490,0.001,95889.0,95887.0,0.009]
[1736348929089,0.3608,95890.0,95879.0,0.3608]
[1736348929292,0.052159,95885.0,95879.0,0.3698]
[1736348929486,0.001,95890.0,95884.0,0.052159]
[1736348929693,0.01057098,95895.0,95888.0,0.3608]
[1736348929987,0.3608,95902.0,95898.0,0.052151]
[1736348930194,0.1301,95909.0,95901.0,0.052149]
[1736348930694,0.1301,95909.0,95888.0,0.3608]
[1736348930695,0.052153,95895.0,95888.0,0.3608]
[1736348930897,0.052155,95892.0,95888.0,0.3608]
[1736348931090,0.001,95895.0,95889.0,0.052156]
[1736348931492,0.001,95895.0,95894.0,0.052153]
[1736348932082,0.001,95895.0,95888.0,0.412957]
[1736348932302,0.001,95895.0,95889.0,0.005]
[1736348932793,0.001,95895.0,95894.0,0.007]
[1736348933384,0.052159,95884.0,95880.0,0.3608]
[1736348933585,0.052159,95884.0,95871.0,0.3608]
[1736348933586,0.3608,95888.0,95871.0,0.3608]
[1736348933801,0.3608,95876.0,95859.0,0.3608]
[1736348933983,0.3608,95876.0,95863.0,0.05217]
[1736348934496,0.052167,95869.0,95863.0,0.05217]
[1736348934995,0.05217,95864.0,95859.0,0.3608]
[1736348935491,0.3608,95876.0,95859.0,0.3608]
[1736348935699,0.052174,95857.0,95856.0,0.0015648]
[1736348935895,0.3608,95867.0,95856.0,0.0015648]
[1736348936199,0.052165,95872.0,95866.0,0.052169]
[1736348936387,0.37194002,95876.0,95863.0,0.009]
[1736348936591,0.052164,95875.0,95867.0,0.052168]
[1736348936784,0.01114002,95876.0,95870.0,0.3608]
[1736348936983,0.001,95876.0,95875.0,0.052164]
[1736348938098,0.052157,95888.0,95871.0,0.4959]
[1736348938301,0.60414061,95910.0,95885.0,0.3608]
[1736348938489,0.052156,95889.0,95885.0,0.3608]
[1736348938684,0.052157,95888.0,95883.0,0.052159]
[1736348938893,0.052159,95885.0,95878.0,0.052162]
[1736348939098,0.052161,95881.0,95878.0,0.052162]
[1736348939400,0.001,95888.0,95871.0,0.37044]
[1736348939593,0.05216,95883.0,95876.0,0.052163]
[1736348939798,0.05216,95883.0,95878.0,0.052162]
[1736348939994,0.05216,95883.0,95880.0,0.052161]
[1736348940200,0.001,95888.0,95881.0,0.3608]
[1736348940396,0.001,95888.0,95887.0,0.052157]
[1736348940698,0.053157,95888.0,95884.0,0.052159]
[1736348940891,0.053157,95888.0,95881.0,0.3608]
[1736348940892,0.001,95888.0,95881.0,0.3608]
[1736348941092,0.001,95888.0,95887.0,0.052157]
[1736348941586,0.052154,95893.0,95887.0,0.052157]
[1736348941785,0.052154,95893.0,95892.0,0.3608]
[1736348942193,0.062578,95898.0,95893.0,0.052154]
[1736348942389,0.052153,95895.0,95893.0,0.052154]
[1736348942588,0.052153,95895.0,95881.0,0.3668]
[1736348942589,0.05216,95882.0,95881.0,0.3668]
[1736348942790,0.05216,95882.0,95872.0,0.3608]
[1736348942791,0.052161,95880.0,95862.0,0.3608]
[1736348942988,0.052168,95867.0,95862.0,0.3608]
[1736348943196,0.15665846,95872.0,95862.0,0.3608]
[1736348943393,0.052169,95866.0,95865.0,0.052169]
[1736348943591,0.05217,95865.0,95864.0,0.05217]
[1736348943994,0.052167,95869.0,95867.0,0.052168]
[1736348944197,0.01053383,95872.0,95862.0,0.3608]
[1736348944496,0.052164,95875.0,95871.0,0.3608]
[1736348944697,0.15665846,95880.0,95871.0,0.3608]
[1736348944901,0.052165,95872.0,95871.0,0.3608]
[1736348945103,0.16679495,95880.0,95871.0,0.3608]
[1736348945801,0.052164,95876.0,95872.0,0.052165]
[1736348946000,0.3608,95891.0,95879.0,0.052162]
[1736348946300,0.002,95893.0,95890.0,0.3608]
[1736348946489,0.002,95893.0,95891.0,0.052155]
[1736348946693,0.052153,95895.0,95891.0,0.052155]
[1736348946889,0.3608,95892.0,95881.0,0.3608]
[1736348947097,0.01019871,95895.0,95884.0,0.052159]
[1736348947299,0.15665846,95900.0,95890.0,0.3608]
[1736348947999,0.052152,95897.0,95890.0,0.3608]
[1736348948203,0.36140001,95916.0,95901.0,0.05215]
[1736348948204,0.052148,95905.0,95901.0,0.05215]
[1736348948397,0.3608,95916.0,95902.0,0.052149]
[1736348948704,0.37105574,95916.0,95902.0,0.052149]
[1736348948899,0.052144,95912.0,95904.0,0.052148]
[1736348949105,0.052144,95912.0,95905.0,0.052147]
[1736348949297,0.052146,95908.0,95905.0,0.052147]
[1736348949492,0.052142,95915.0,95901.0,0.052149]
[1736348949696,0.37105574,95916.0,95900.0,0.3608]
[1736348949896,0.37105574,95916.0,95902.0,0.005]
[1736348949897,0.052143,95913.0,95902.0,0.005]
[1736348950102,0.052147,95907.0,95902.0,0.005]
[1736348950404,0.3608,95914.0,95902.0,0.005]
[1736348950594,0.052148,95904.0,95902.0,0.005]
[1736348951200,0.052149,95903.0,95902.0,0.005]
[1736348951906,0.052161,95881.0,95880.0,0.3608]
[1736348952105,0.052161,95881.0,95872.0,0.18402606]
[1736348952106,0.15665846,95890.0,95872.0,0.18402606]
[1736348952302,0.3608,95885.0,95870.0,0.18402606]
[1736348952497,0.052166,95871.0,95870.0,0.18402606]
[1736348953091,0.3608,95875.0,95870.0,0.18402606]
[1736348953306,0.001,95881.0,95875.0,0.052163]
[1736348953497,0.001,95881.0,95880.0,0.412961]
[1736348953810,0.052161,95881.0,95880.0,0.3608]
[1736348953999,0.052161,95881.0,95872.0,0.3608]
[1736348954000,0.052165,95873.0,95872.0,0.3608]
[1736348954501,0.052165,95873.0,95860.0,0.3608]
[1736348954502,0.052164,95876.0,95875.0,0.007]
[1736348956100,0.052171,95861.0,95860.0,0.3608]
[1736348956308,0.412971,95861.0,95854.0,0.052175]
[1736348956603,0.05218,95846.0,95845.0,0.14856796]
[1736348956811,0.41298,95846.0,95845.0,0.06614796]
[1736348957008,0.052186,95835.0,95833.0,0.23525026]
[1736348957699,0.0101149,95839.0,95833.0,0.23525026]
[1736348958002,0.15665846,95843.0,95833.0,0.23525026]
[1736348958202,0.15665846,95843.0,95823.0,0.052192]
[1736348958401,0.052184,95838.0,95826.0,0.05219]
[1736348958602,0.052186,95834.0,95833.0,0.3608]
[1736348959004,0.043186,95834.0,95833.0,0.3608]
[1736348960110,0.001,95838.0,95836.0,0.052185]
[1736348960309,0.42349111,95846.0,95836.0,0.052185]
[1736348960805,0.42349111,95846.0,95833.0,0.3698]
[1736348960806,0.15564442,95845.0,95833.0,0.3698]
[1736348961002,0.052186,95835.0,95833.0,0.3698]
[1736348961513,0.052184,95838.0,95833.0,0.3698]
[1736348961704,0.37131111,95846.0,95833.0,0.3698]
[1736348961904,0.15564442,95850.0,95833.0,0.3698]
[1736348962105,0.15564442,95850.0,95848.0,0.052178]
[1736348962703,0.15564442,95850.0,95845.0,0.3608]
[1736348962905,0.20883046,95860.0,95851.0,0.052176]
[1736348963107,0.052172,95860.0,95854.0,0.3608]
[1736348963311,0.052175,95855.0,95854.0,0.3608]
[1736348963903,0.32251177,95870.0,95854.0,0.3608]
[1736348964114,0.01020889,95870.0,95854.0,0.3608]
[1736348964314,0.15632442,95871.0,95869.0,0.412967]
[1736348964612,0.18610255,95878.0,95877.0,0.052163]
[1736348964907,0.21711964,95892.0,95877.0,0.712963]
[1736348965104,0.31017092,95911.0,95891.0,0.412955]
[1736348965299,0.31017092,95911.0,95905.0,0.052147]
[1736348965503,0.31017092,95911.0,95905.0,0.412947]
[1736348965712,0.28954217,95906.0,95905.0,0.412947]
[1736348965907,0.01038834,95906.0,95905.0,0.412947]
[1736348966104,0.18648643,95912.0,95911.0,0.052144]
[1736348967411,0.052141,95917.0,95913.0,0.052143]
[1736348967611,0.052141,95917.0,95916.0,0.3608]
[1736348968309,0.06268597,95917.0,95916.0,0.3608]
[1736348968900,0.06268597,95917.0,95906.0,0.3608]
[1736348969115,0.052146,95907.0,95906.0,0.3608]
[1736348969506,0.052146,95907.0,95888.0,0.3608]
[1736348969711,0.052155,95892.0,95888.0,0.3608]
[1736348970010,0.052156,95889.0,95888.0,0.3608]
[1736348970313,0.052158,95886.0,95871.0,0.3608]
[1736348971611,0.052164,95874.0,95871.0,0.3608]
[1736348971807,0.052164,95874.0,95857.0,0.3608]
[1736348971808,0.052164,95874.0,95865.0,0.3608]
[1736348972916,0.052173,95858.0,95857.0,0.3608]
[1736348973808,0.052173,95858.0,95848.0,0.052178]
[1736348974006,0.052183,95839.0,95837.0,0.00156513]
[1736348974415,0.3608,95851.0,95837.0,0.00156513]
[1736348974617,0.052182,95841.0,95840.0,0.3608]
[1736348974913,0.052184,95838.0,95837.0,0.00156513]
[1736348977709,0.053184,95838.0,95837.0,0.00756513]
[1736348979218,0.001,95838.0,95837.0,0.36836513]
[1736348981020,0.053184,95838.0,95837.0,0.36836513]
[1736348981406,0.053184,95838.0,95837.0,0.00756513]
[1736348982711,0.06377525,95838.0,95837.0,0.00756513]
[1736348982918,0.053184,95838.0,95837.0,0.00756513]
[1736348987426,0.001,95838.0,95837.0,0.00756513]
[1736348988019,0.001,95838.0,95837.0,0.05974913]
[1736348988220,0.001,95838.0,95837.0,0.00756513]
[1736348988619,0.001,95838.0,95837.0,0.05974913]
[1736348990822,0.053184,95838.0,95837.0,0.05974913]
[1736348991126,0.053184,95838.0,95837.0,0.00756513]
[1736348991326,0.053184,95838.0,95837.0,0.05974913]
[1736348991529,0.053184,95838.0,95837.0,0.00756513]
[1736348992027,0.413984,95838.0,95837.0,0.00756513]
[1736348992220,0.05219,95826.0,95825.0,7.441e-05]
[1736348992420,0.05230456,95826.0,95825.0,7.441e-05]
[1736348992723,0.36091456,95826.0,95805.0,0.052202]
[1736348992916,0.052203,95803.0,95802.0,0.3608]
[1736348994327,0.05233272,95803.0,95802.0,0.3608]
[1736348994927,0.05333272,95803.0,95802.0,0.3678]
[1736348995629,0.05333272,95803.0,95802.0,0.007]
[1736348996622,0.06609407,95803.0,95802.0,0.007]
[1736348996923,0.3608,95826.0,95802.0,0.3608]
[1736348997231,0.052192,95824.0,95800.0,0.4608]
[1736348997430,0.052194,95820.0,95811.0,0.3608]
[1736348997620,0.3736132,95826.0,95811.0,0.3608]
[1736348997621,0.0128132,95826.0,95819.0,0.3608]
[1736348997820,0.05225231,95825.0,95819.0,0.3608]
[1736348998022,6.131e-05,95825.0,95819.0,0.3608]
[1736348998525,6.131e-05,95825.0,95824.0,0.052192]
[1736348998931,6.131e-05,95825.0,95824.0,0.412992]
[1736348999129,0.052183,95840.0,95835.0,0.052185]
[1736348999433,0.01316777,95843.0,95836.0,0.3608]
[1736348999633,0.1353,95854.0,95836.0,0.3608]
[1736348999934,0.052184,95837.0,95836.0,0.3608]
[1736349000522,0.001,95843.0,95836.0,0.3608]
[1736349000937,0.052171,95863.0,95845.0,0.05218]
[1736349001235,0.3608,95915.0,95866.0,0.052169]
[1736349001436,0.052163,95878.0,95865.0,0.3608]
[1736349001645,0.15681668,95880.0,95862.0,0.00056]
[1736349001843,0.052168,95868.0,95866.0,0.3608]
[1736349002340,0.1441,95867.0,95856.0,0.052174]
[1736349002642,0.1441,95867.0,95854.0,0.3608]
[1736349002832,0.1441,95867.0,95866.0,0.052169]
[1736349003032,0.196268,95867.0,95865.0,0.3608]
[1736349003540,0.196268,95867.0,95866.0,0.003]
[1736349004036,0.052175,95855.0,95854.0,0.3638]
[1736349004444,0.052171,95862.0,95854.0,0.3638]
[1736349004636,0.052171,95862.0,95854.0,0.412975]
[1736349004836,0.1451,95867.0,95854.0,0.3608]
[1736349005035,0.052169,95865.0,95862.0,0.3608]
[1736349005238,0.05217,95864.0,95862.0,0.3608]
[1736349006741,0.052175,95856.0,95854.0,0.3618]
[1736349007538,0.052175,95856.0,95854.0,0.001]
[1736349007943,0.052175,95855.0,95847.0,0.052179]
[1736349008137,0.3608,95863.0,95840.0,0.00011398]
[1736349008138,0.052182,95843.0,95840.0,0.00011398]
[1736349008352,0.052178,95849.0,95840.0,0.00011398]
[1736349008547,0.052179,95848.0,95840.0,0.00011398]
[1736349008745,0.052181,95844.0,95840.0,0.00011398]
[1736349008948,0.052182,95842.0,95840.0,0.00011398]
[1736349009249,0.05219,95827.0,95819.0,0.052194]
[1736349009656,0.05219,95827.0,95817.0,0.3608]
[1736349009849,0.05219,95827.0,95825.0,0.3623652]
[1736349010356,0.36091398,95826.0,95825.0,0.0025652]
[1736349010554,0.052196,95816.0,95807.0,0.3608]
[1736349010855,0.0522,95809.0,95808.0,0.3608]
[1736349011155,0.052207,95796.0,95792.0,0.00012756]
[1736349011344,0.3608,95796.0,95788.0,0.00212591]
[1736349011545,0.05221,95790.0,95788.0,0.00156591]
[1736349012449,0.00010971,95789.0,95788.0,0.00156591]
[1736349013355,0.052211,95788.0,95778.0,0.3608]
[1736349013557,0.052215,95781.0,95778.0,0.3608]
[1736349013859,0.00010971,95789.0,95781.0,0.052215]
[1736349014062,0.00010971,95789.0,95778.0,0.3608]
[1736349014254,0.052213,95786.0,95778.0,0.3608]
[1736349014450,0.00010971,95789.0,95778.0,0.3608]
[1736349014652,0.052216,95779.0,95778.0,0.3608]
[1736349014956,0.052222,95769.0,95761.0,0.3608]
[1736349015257,0.3608,95769.0,95751.0,0.3608]
[1736349015457,0.15681668,95761.0,95751.0,0.3608]
[1736349015657,0.20904268,95761.0,95751.0,0.3608]
[1736349016563,0.20904268,95761.0,95743.0,0.3608]
[1736349016564,0.052232,95750.0,95743.0,0.3608]
[1736349016860,0.052229,95756.0,95743.0,0.3608]
[1736349017050,0.49911343,95760.0,95751.0,0.3608]
[1736349017255,0.49987343,95760.0,95751.0,0.3608]
[1736349017460,0.49987343,95760.0,95743.0,0.3608]
[1736349017461,0.49911343,95760.0,95743.0,0.3608]
[1736349017663,0.052231,95752.0,95743.0,0.3608]
[1736349017959,0.052233,95748.0,95743.0,0.3608]
[1736349018172,0.052235,95745.0,95743.0,0.3608]
[1736349018467,0.001,95756.0,95743.0,0.3608]
[1736349018652,0.052231,95753.0,95743.0,0.3608]
[1736349018859,0.001,95756.0,95743.0,0.3608]
[1736349019260,0.15681668,95753.0,95743.0,0.3608]
[1736349019456,0.052233,95748.0,95743.0,0.3608]
[1736349019857,0.052234,95746.0,95743.0,0.3608]
[1736349020261,0.052237,95741.0,95732.0,0.3608]
[1736349020554,0.052237,95741.0,95723.0,0.3608]
[1736349020555,0.413037,95741.0,95723.0,0.3608]
[1736349021463,0.414037,95741.0,95723.0,0.413046]
[1736349021665,0.052238,95739.0,95723.0,0.3608]
[1736349021862,0.052244,95729.0,95723.0,0.3608]
[1736349022164,0.3608,95724.0,95712.0,0.3608]
[1736349022360,0.3608,95713.0,95702.0,0.3608]
[1736349022567,0.052253,95711.0,95706.0,0.01639726]
[1736349022760,7.907e-05,95710.0,95706.0,0.01639726]
[1736349023062,7.907e-05,95710.0,95702.0,0.3608]
[1736349023268,7.907e-05,95710.0,95708.0,0.052254]
[1736349023464,0.3608,95743.0,95706.0,0.3608]
[1736349023465,0.05223,95754.0,95736.0,0.052239]
[1736349023761,0.3608,95773.0,95706.0,0.413056]
[1736349023762,0.052231,95753.0,95741.0,0.3608]
[1736349023967,0.15681668,95760.0,95741.0,0.3608]
[1736349024163,0.15681668,95751.0,95739.0,0.3608]
[1736349024369,7.523e-05,95750.0,95741.0,0.052236]
[1736349024664,0.05230723,95750.0,95739.0,0.3608]
[1736349024968,7.523e-05,95750.0,95739.0,0.052238]
[1736349025158,0.052238,95739.0,95730.0,0.3608]
[1736349025453,0.24236889,95740.0,95724.0,0.3608]
[1736349025656,0.052244,95729.0,95724.0,0.3608]
[1736349025854,0.36066723,95733.0,95712.0,0.36236717]
[1736349026073,0.051245,95726.0,95712.0,0.41461917]
[1736349026260,0.051245,95726.0,95712.0,0.36236717]
[1736349026567,0.36066723,95733.0,95725.0,0.052245]
[1736349026769,0.3608,95737.0,95720.0,0.3608]
[1736349026965,0.052244,95728.0,95720.0,0.413048]
[1736349027164,0.3608,95737.0,95724.0,0.002]
[1736349027165,0.052245,95726.0,95724.0,0.002]
[1736349027372,0.00011207,95725.0,95724.0,0.002]
[1736349027961,0.00011207,95725.0,95712.0,0.00156717]
[1736349027962,0.05225,95717.0,95712.0,0.00156717]
[1736349028182,0.3608,95721.0,95712.0,0.00156717]
[1736349028363,0.413052,95713.0,95712.0,0.00156717]
[1736349029371,0.052259,95701.0,95690.0,0.3608]
[1736349029873,0.052259,95701.0,95684.0,0.1335]
[1736349030059,0.05237894,95701.0,95684.0,0.1335]
[1736349030463,0.05237894,95701.0,95679.0,0.3608]
[1736349030763,0.052269,95682.0,95679.0,0.3608]
[1736349030958,0.3608,95693.0,95679.0,0.3608]
[1736349031163,0.00111994,95701.0,95700.0,0.052259]
[1736349031462,0.001,95721.0,95700.0,0.3608]
[1736349031665,0.052249,95718.0,95711.0,0.3608]
[1736349031865,0.052242,95732.0,95723.0,0.052246]
[1736349032063,0.052238,95739.0,95730.0,0.3608]
[1736349032265,8.65e-05,95738.0,95723.0,0.052246]
[1736349032559,0.052245,95727.0,95708.0,0.3608]
[1736349032769,0.001,95718.0,95708.0,0.3608]